Workbook

Sheet HIST. OPERAÇÕES
B9: Histórico de Operações | E9: =COUNTIF(TB_HistoricoOperacoes[Ativo],"<>") -> 14
B10: Registro | C10: Data Entrada | D10: Corretora | E10: Nota | F10: Ativo | G10: C / V | H10: Qtde | I10: Vlr Entrada | J10: Total Ativo (E) | K10: PM (Preço Médio) | L10: Resultado Esperado PM | M10: Data - Saída | N10: Vlr Saída | O10: Total Ativo (S)
B11: =ROW()-ROW(TB_HistoricoOperacoes[[#Headers],[Registro]]) -> 1 | C11: 2021-03-20 | D11: Modal Mais | E11: 1620 | F11: NTCO3 | G11: V | H11: 150 | I11: 37 | J11: =TB_HistoricoOperacoes[[#This Row],[Qtde]]*TB_HistoricoOperacoes[[#This Row],[Vlr Entrada]] -> 5550 | L11: -38.14 | O11: =TB_HistoricoOperacoes[[#This Row],[Qtde]]*TB_HistoricoOperacoes[[#This Row],[Vlr Saída]] -> 0
B12: =ROW()-ROW(TB_HistoricoOperacoes[[#Headers],[Registro]]) -> 2 | C12: 2021-03-20 | D12: Modal Mais | E12: 1631 | F12: BBSS3 | G12: C | H12: 250 | I12: 20.6 | J12: =TB_HistoricoOperacoes[[#This Row],[Qtde]]*TB_HistoricoOperacoes[[#This Row],[Vlr Entrada]] -> 5150 | L12: 20.6 | O12: =TB_HistoricoOperacoes[[#This Row],[Qtde]]*TB_HistoricoOperacoes[[#This Row],[Vlr Saída]] -> 0
B13: =ROW()-ROW(TB_HistoricoOperacoes[[#Headers],[Registro]]) -> 3 | C13: 2021-03-17 | D13: Modal Mais | E13: 1620 | F13: TASA4 | G13: C | H13: 500 | I13: 10.3 | J13: =TB_HistoricoOperacoes[[#This Row],[Qtde]]*TB_HistoricoOperacoes[[#This Row],[Vlr Entrada]] -> 5150 | L13: 0 | M13: 2021-03-20 | N13: 21.32 | O13: =TB_HistoricoOperacoes[[#This Row],[Qtde]]*TB_HistoricoOperacoes[[#This Row],[Vlr Saída]] -> 10660
B14: =ROW()-ROW(TB_HistoricoOperacoes[[#Headers],[Registro]]) -> 4 | C14: 2021-03-16 | D14: XP | E14: 4221 | F14: MRFG3 | G14: V | H14: 150 | I14: 14.54 | J14: =TB_HistoricoOperacoes[[#This Row],[Qtde]]*TB_HistoricoOperacoes[[#This Row],[Vlr Entrada]] -> 2181 | L14: -14.59 | O14: =TB_HistoricoOperacoes[[#This Row],[Qtde]]*TB_HistoricoOperacoes[[#This Row],[Vlr Saída]] -> 0
B15: =ROW()-ROW(TB_HistoricoOperacoes[[#Headers],[Registro]]) -> 5 | C15: 2021-03-16 | D15: Modal Mais | E15: 2119 | F15: NTCO3 | G15: V | H15: 200 | I15: 39 | J15: =TB_HistoricoOperacoes[[#This Row],[Qtde]]*TB_HistoricoOperacoes[[#This Row],[Vlr Entrada]] -> 7800 | L15: -38.14 | M15: - | O15: =TB_HistoricoOperacoes[[#This Row],[Qtde]]*TB_HistoricoOperacoes[[#This Row],[Vlr Saída]] -> 0
B16: =ROW()-ROW(TB_HistoricoOperacoes[[#Headers],[Registro]]) -> 6 | C16: 2021-03-09 | D16: Rico | E16: 3037 | F16: VALE3 | G16: C | H16: 100 | I16: 24.12 | J16: =TB_HistoricoOperacoes[[#This Row],[Qtde]]*TB_HistoricoOperacoes[[#This Row],[Vlr Entrada]] -> 2412 | L16: 24.12 | O16: =TB_HistoricoOperacoes[[#This Row],[Qtde]]*TB_HistoricoOperacoes[[#This Row],[Vlr Saída]] -> 0
B17: =ROW()-ROW(TB_HistoricoOperacoes[[#Headers],[Registro]]) -> 7 | C17: 2021-03-09 | D17: XP | E17: 4112 | F17: VALE3 | G17: C | H17: 200 | I17: 24.46 | J17: =TB_HistoricoOperacoes[[#This Row],[Qtde]]*TB_HistoricoOperacoes[[#This Row],[Vlr Entrada]] -> 4892 | L17: 24.46 | O17: =TB_HistoricoOperacoes[[#This Row],[Qtde]]*TB_HistoricoOperacoes[[#This Row],[Vlr Saída]] -> 0
B18: =ROW()-ROW(TB_HistoricoOperacoes[[#Headers],[Registro]]) -> 8 | C18: 2021-03-08 | D18: Genial Investimentos | E18: 1620 | F18: GOAU4 | G18: C | H18: 200 | I18: 11.92 | J18: =TB_HistoricoOperacoes[[#This Row],[Qtde]]*TB_HistoricoOperacoes[[#This Row],[Vlr Entrada]] -> 2384 | M18: 2021-03-12 | N18: 11.52 | O18: =TB_HistoricoOperacoes[[#This Row],[Qtde]]*TB_HistoricoOperacoes[[#This Row],[Vlr Saída]] -> 2304
B19: =ROW()-ROW(TB_HistoricoOperacoes[[#Headers],[Registro]]) -> 9 | C19: 2021-03-08 | D19: Genial Investimentos | E19: 1620 | F19: ENBR3 | G19: C | H19: 100 | I19: 18.79 | J19: =TB_HistoricoOperacoes[[#This Row],[Qtde]]*TB_HistoricoOperacoes[[#This Row],[Vlr Entrada]] -> 1879 | L19: 18.48 | O19: =TB_HistoricoOperacoes[[#This Row],[Qtde]]*TB_HistoricoOperacoes[[#This Row],[Vlr Saída]] -> 0
B20: =ROW()-ROW(TB_HistoricoOperacoes[[#Headers],[Registro]]) -> 10 | C20: 2021-03-08 | D20: Genial Investimentos | E20: 1620 | F20: PRFM3 | G20: C | H20: 100 | I20: 8.87 | J20: =TB_HistoricoOperacoes[[#This Row],[Qtde]]*TB_HistoricoOperacoes[[#This Row],[Vlr Entrada]] -> 887 | O20: =TB_HistoricoOperacoes[[#This Row],[Qtde]]*TB_HistoricoOperacoes[[#This Row],[Vlr Saída]] -> 0
B21: =ROW()-ROW(TB_HistoricoOperacoes[[#Headers],[Registro]]) -> 11 | C21: 2021-03-05 | D21: Modal Mais | E21: 1405 | F21: MRFG3 | G21: V | H21: 35 | I21: 14.59 | J21: =TB_HistoricoOperacoes[[#This Row],[Qtde]]*TB_HistoricoOperacoes[[#This Row],[Vlr Entrada]] -> 510.65 | L21: -14.59 | O21: =TB_HistoricoOperacoes[[#This Row],[Qtde]]*TB_HistoricoOperacoes[[#This Row],[Vlr Saída]] -> 0
B22: =ROW()-ROW(TB_HistoricoOperacoes[[#Headers],[Registro]]) -> 12 | C22: 2021-03-04 | D22: Genial Investimentos | E22: 1405 | F22: MRFG3 | G22: V | H22: 45 | I22: 14.67 | J22: =TB_HistoricoOperacoes[[#This Row],[Qtde]]*TB_HistoricoOperacoes[[#This Row],[Vlr Entrada]] -> 660.15 | L22: -14.59 | O22: =TB_HistoricoOperacoes[[#This Row],[Qtde]]*TB_HistoricoOperacoes[[#This Row],[Vlr Saída]] -> 0
B23: =ROW()-ROW(TB_HistoricoOperacoes[[#Headers],[Registro]]) -> 13 | C23: 2021-03-01 | D23: Clear | E23: 1728 | F23: MRFG3 | G23: V | H23: 200 | I23: 14.61 | J23: =TB_HistoricoOperacoes[[#This Row],[Qtde]]*TB_HistoricoOperacoes[[#This Row],[Vlr Entrada]] -> 2922 | M23: 2021-03-02 | N23: 14.72 | O23: =TB_HistoricoOperacoes[[#This Row],[Qtde]]*TB_HistoricoOperacoes[[#This Row],[Vlr Saída]] -> 2944
B24: =ROW()-ROW(TB_HistoricoOperacoes[[#Headers],[Registro]]) -> 14 | C24: 2021-02-26 | D24: Genial Investimentos | E24: 2109 | F24: ENBR3 | G24: C | H24: 245 | I24: 18.35 | J24: =TB_HistoricoOperacoes[[#This Row],[Qtde]]*TB_HistoricoOperacoes[[#This Row],[Vlr Entrada]] -> 4495.75 | L24: 18.48 | O24: =TB_HistoricoOperacoes[[#This Row],[Qtde]]*TB_HistoricoOperacoes[[#This Row],[Vlr Saída]] -> 0
